[Event "*** SCC Grand Prix: Titled Tuesday Blitz"]
[Site "Chess.com"]
[Date "2020.06.09"]
[Round "7"]
[White "bait_or_mate"]
[Black "Zavgorodniy_Serg"]
[Result "1-0"]
[WhiteElo "2603"]
[BlackElo "2638"]
[TimeControl "180+1"]
[EndTime "10:19:55 PDT"]
[Termination "bait_or_mate won by resignation"]

1. d4 {[%clk 0:02:59.4]} 1... Nf6 {[%clk 0:02:57.2]} 2. c4 {[%clk 0:02:59.7]}
2... e6 {[%clk 0:02:57]} 3. Nf3 {[%clk 0:02:59.5]} 3... Bb4+ {[%clk 0:02:54.9]}
4. Nbd2 {[%clk 0:02:59.1]} 4... b6 {[%clk 0:02:52.3]} 5. a3 {[%clk 0:02:58.5]}
5... Bxd2+ {[%clk 0:02:52.1]} 6. Qxd2 {[%clk 0:02:59.4]} 6... Bb7 {[%clk
0:02:52.1]} 7. e3 {[%clk 0:02:59.9]} 7... d6 {[%clk 0:02:51.9]} 8. Be2 {[%clk
0:03:00.3]} 8... O-O {[%clk 0:02:52.3]} 9. b4 {[%clk 0:03:00.7]} 9... Nbd7
{[%clk 0:02:52.5]} 10. Bb2 {[%clk 0:03:01]} 10... Ne4 {[%clk 0:02:51.2]} 11. Qc2
{[%clk 0:03:01.4]} 11... Qe7 {[%clk 0:02:51.5]} 12. O-O {[%clk 0:03:01.4]} 12...
f5 {[%clk 0:02:52.1]} 13. d5 {[%clk 0:02:47.7]} 13... e5 {[%clk 0:02:47.9]} 14.
Nd2 {[%clk 0:02:47]} 14... Nxd2 {[%clk 0:02:46]} 15. Qxd2 {[%clk 0:02:47.9]}
15... f4 {[%clk 0:02:45.8]} 16. exf4 {[%clk 0:02:46.8]} 16... Rxf4 {[%clk
0:02:44.4]} 17. Bd3 {[%clk 0:02:39.2]} 17... Raf8 {[%clk 0:02:41.4]} 18. Rae1
{[%clk 0:02:33.9]} 18... Qf7 {[%clk 0:02:21.6]} 19. g3 {[%clk 0:02:21.5]} 19...
Rf3 {[%clk 0:02:20.9]} 20. Be4 {[%clk 0:02:21.4]} 20... b5 {[%clk 0:02:20.4]}
21. Bxf3 {[%clk 0:02:20.1]} 21... Qxf3 {[%clk 0:02:21.3]} 22. Re3 {[%clk
0:02:17.9]} 22... Qf7 {[%clk 0:02:10.1]} 23. f4 {[%clk 0:02:10.8]} 23... bxc4
{[%clk 0:02:08.8]} 24. Rfe1 {[%clk 0:01:36.7]} 24... Nf6 {[%clk 0:01:44.1]} 25.
fxe5 {[%clk 0:01:25.1]} 25... Nxd5 {[%clk 0:01:43.9]} 26. e6 {[%clk 0:01:25]}
26... Qe7 {[%clk 0:01:37.2]} 27. Re4 {[%clk 0:01:20.4]} 27... Nf6 {[%clk
0:01:14.1]} 28. Rf4 {[%clk 0:01:13.8]} 28... Ba8 {[%clk 0:00:54.1]} 29. Bxf6
{[%clk 0:01:06.3]} 29... gxf6 {[%clk 0:00:55]} 30. Qd4 {[%clk 0:01:01.9]} 30...
c5 {[%clk 0:00:49]} 31. Qxc4 {[%clk 0:00:41]} 31... Kh8 {[%clk 0:00:48.7]} 32.
bxc5 {[%clk 0:00:35.7]} 32... dxc5 {[%clk 0:00:49.6]} 33. Qb5 {[%clk 0:00:21.6]}
33... Rd8 {[%clk 0:00:39.8]} 34. Qf1 {[%clk 0:00:13.7]} 34... Qb7 {[%clk
0:00:37.2]} 35. Rfe4 {[%clk 0:00:13.8]} 35... Qe7 {[%clk 0:00:33]} 36. R4e3
{[%clk 0:00:12.9]} 36... Rd4 {[%clk 0:00:21.5]} 37. Qf5 {[%clk 0:00:10.7]} 37...
Kg7 {[%clk 0:00:20]} 38. Rf1 {[%clk 0:00:04.7]} 38... Rd2 {[%clk 0:00:15.6]} 39.
Rf2 {[%clk 0:00:04]} 39... Rd1+ {[%clk 0:00:14.8]} 40. Rf1 {[%clk 0:00:04.4]}
40... Rd2 {[%clk 0:00:15.4]} 41. Qg4+ {[%clk 0:00:03.8]} 41... Kh8 {[%clk
0:00:14.7]} 42. Rf2 {[%clk 0:00:04.4]} 42... Rd8 {[%clk 0:00:13.3]} 43. Qf4
{[%clk 0:00:03.7]} 43... Rf8 {[%clk 0:00:13.1]} 44. Rf1 {[%clk 0:00:03.7]} 44...
Kg7 {[%clk 0:00:12.3]} 45. Rfe1 {[%clk 0:00:04]} 45... Rd8 {[%clk 0:00:12.1]}
46. Qg4+ {[%clk 0:00:04.4]} 46... Kh8 {[%clk 0:00:11.7]} 47. Rf1 {[%clk
0:00:04.6]} 47... Rd4 {[%clk 0:00:11.6]} 48. Qf5 {[%clk 0:00:04.1]} 48... Kg7
{[%clk 0:00:11.6]} 49. h4 {[%clk 0:00:03.7]} 49... c4 {[%clk 0:00:06.9]} 50. h5
{[%clk 0:00:03.8]} 50... a5 {[%clk 0:00:05.7]} 51. h6+ {[%clk 0:00:03.9]} 51...
Kxh6 {[%clk 0:00:05.9]} 52. Qxf6+ {[%clk 0:00:04.4]} 52... Qxf6 {[%clk
0:00:05.5]} 53. Rxf6+ {[%clk 0:00:05.3]} 53... Kg5 {[%clk 0:00:06.1]} 54. Rf4
{[%clk 0:00:04.3]} 54... Rd1+ {[%clk 0:00:05.7]} 55. Kf2 {[%clk 0:00:04.5]}
55... Rd2+ {[%clk 0:00:06.6]} 56. Re2 {[%clk 0:00:04.9]} 56... Rd8 {[%clk
0:00:07.5]} 57. e7 {[%clk 0:00:05]} 57... Re8 {[%clk 0:00:07.9]} 58. Rf8 {[%clk
0:00:05.3]} 58... Bc6 {[%clk 0:00:07.9]} 59. Rxe8 {[%clk 0:00:04.3]} 59... Bxe8
{[%clk 0:00:08.8]} 60. Ke3 {[%clk 0:00:04.5]} 60... Kf6 {[%clk 0:00:09.7]} 61.
Kd4 {[%clk 0:00:05]} 1-0

[Event "*** SCC Grand Prix: Titled Tuesday Blitz"]
[Site "Chess.com"]
[Date "2020.06.09"]
[Round "7"]
[White "The_Machine04"]
[Black "novocane"]
[Result "0-1"]
[WhiteElo "2278"]
[BlackElo "2205"]
[TimeControl "180+1"]
[EndTime "10:19:59 PDT"]
[Termination "novocane won on time"]

1. d4 {[%clk 0:03:00.9]} 1... Nf6 {[%clk 0:02:59.7]} 2. Bg5 {[%clk 0:03:00.5]}
2... e6 {[%clk 0:02:58.8]} 3. Nd2 {[%clk 0:02:59.9]} 3... h6 {[%clk 0:02:57.9]}
4. Bh4 {[%clk 0:02:59.6]} 4... c5 {[%clk 0:02:55.3]} 5. e4 {[%clk 0:02:59.1]}
5... cxd4 {[%clk 0:02:45.7]} 6. e5 {[%clk 0:02:58.7]} 6... g5 {[%clk 0:02:45.3]}
7. Bg3 {[%clk 0:02:58.5]} 7... Nd5 {[%clk 0:02:41.9]} 8. h4 {[%clk 0:02:58.2]}
8... Nc6 {[%clk 0:02:20.6]} 9. hxg5 {[%clk 0:02:51.7]} 9... Qxg5 {[%clk
0:02:20.1]} 10. Ngf3 {[%clk 0:02:46]} 10... Qg7 {[%clk 0:02:18.1]} 11. Bc4
{[%clk 0:02:40.1]} 11... Ne3 {[%clk 0:02:12.4]} 12. Qc1 {[%clk 0:02:02.1]} 12...
Nxg2+ {[%clk 0:02:09]} 13. Kf1 {[%clk 0:01:52.9]} 13... Ne3+ {[%clk 0:02:08.4]}
14. fxe3 {[%clk 0:01:52.5]} 14... Qxg3 {[%clk 0:02:08.1]} 15. exd4 {[%clk
0:01:49.9]} 15... d5 {[%clk 0:01:56.3]} 16. Bd3 {[%clk 0:01:37.9]} 16... Rg8
{[%clk 0:01:44.9]} 17. Rg1 {[%clk 0:01:32.9]} 17... Qh3+ {[%clk 0:01:41.1]} 18.
Kf2 {[%clk 0:01:26.9]} 18... Rxg1 {[%clk 0:01:26.8]} 19. Qxg1 {[%clk 0:01:27.8]}
19... Bd7 {[%clk 0:01:22.7]} 20. Qg8 {[%clk 0:01:09]} 20... O-O-O {[%clk
0:01:17.3]} 21. Qxf7 {[%clk 0:01:07]} 21... Nxd4 {[%clk 0:01:11.1]} 22. Nxd4
{[%clk 0:00:07.8]} 22... Bc5 {[%clk 0:01:10.7]} 23. Ke2 {[%clk 0:00:05.2]} 23...
Bxd4 {[%clk 0:01:10.1]} 24. Rf1 {[%clk 0:00:03.4]} 24... Qe3+ {[%clk 0:01:05.8]}
25. Kd1 {[%clk 0:00:03.4]} 25... Bxe5 {[%clk 0:01:03.3]} 26. Qf3 {[%clk
0:00:02.7]} 26... Qxf3+ {[%clk 0:01:00.8]} 27. Nxf3 {[%clk 0:00:03.6]} 27...
Bxb2 {[%clk 0:01:00.7]} 28. Re1 {[%clk 0:00:03.6]} 28... Rf8 {[%clk 0:00:53.8]}
29. Ne5 {[%clk 0:00:03.7]} 29... Bc3 {[%clk 0:00:48.8]} 30. Nxd7 {[%clk
0:00:02.5]} 30... Kxd7 {[%clk 0:00:49]} 31. Rh1 {[%clk 0:00:03.1]} 31... Rf6
{[%clk 0:00:48.4]} 32. Ke2 {[%clk 0:00:02]} 32... e5 {[%clk 0:00:48.5]} 33. Bb5+
{[%clk 0:00:01.9]} 33... Kd6 {[%clk 0:00:48.6]} 34. Rd1 {[%clk 0:00:02.5]} 34...
Kc5 {[%clk 0:00:46.5]} 35. Ba4 {[%clk 0:00:02.1]} 35... Bd4 {[%clk 0:00:46.8]}
36. Bb3 {[%clk 0:00:03]} 36... Rf2+ {[%clk 0:00:46.2]} 37. Ke1 {[%clk 0:00:03]}
37... Rh2 {[%clk 0:00:46.2]} 38. Kf1 {[%clk 0:00:03]} 38... Rh1+ {[%clk
0:00:45.4]} 39. Ke2 {[%clk 0:00:03.4]} 39... Rxd1 {[%clk 0:00:42.3]} 40. Kxd1
{[%clk 0:00:04.3]} 40... h5 {[%clk 0:00:38.8]} 41. Ke2 {[%clk 0:00:04.6]} 41...
h4 {[%clk 0:00:39.2]} 42. Kf3 {[%clk 0:00:04.7]} 42... e4+ {[%clk 0:00:33.4]}
43. Kg4 {[%clk 0:00:04.9]} 43... Bf6 {[%clk 0:00:32.9]} 44. c3 {[%clk
0:00:03.6]} 44... Bxc3 {[%clk 0:00:27.4]} 45. Kxh4 {[%clk 0:00:03.9]} 45... e3
{[%clk 0:00:24.3]} 46. Bd1 {[%clk 0:00:02]} 46... d4 {[%clk 0:00:24]} 47. Be2
{[%clk 0:00:02.2]} 47... Be1+ {[%clk 0:00:22.1]} 48. Kg4 {[%clk 0:00:01.9]}
48... Kb4 {[%clk 0:00:22.3]} 49. Kf3 {[%clk 0:00:02.3]} 49... Kc3 {[%clk
0:00:19.3]} 50. Ke4 {[%clk 0:00:02.7]} 50... a5 {[%clk 0:00:17.6]} 51. Kd5
{[%clk 0:00:02.1]} 51... d3 {[%clk 0:00:15.3]} 52. Bxd3 {[%clk 0:00:01.8]} 52...
Kxd3 {[%clk 0:00:15.7]} 53. Kc5 {[%clk 0:00:01.7]} 53... Bb4+ {[%clk 0:00:15.3]}
54. Kb6 {[%clk 0:00:02.6]} 54... e2 {[%clk 0:00:15.5]} 55. Kxb7 {[%clk
0:00:02.4]} 55... e1=Q {[%clk 0:00:15.8]} 56. Ka6 {[%clk 0:00:03.3]} 56... Bd2
{[%clk 0:00:14.6]} 57. a4 {[%clk 0:00:04.2]} 57... Qb1 {[%clk 0:00:13.2]} 0-1

[Event "*** SCC Grand Prix: Titled Tuesday Blitz"]
[Site "Chess.com"]
[Date "2020.06.09"]
[Round "7"]
[White "frankshar"]
[Black "monstertube"]
[Result "1-0"]
[WhiteElo "2355"]
[BlackElo "2171"]
[TimeControl "180+1"]
[EndTime "10:20:01 PDT"]
[Termination "frankshar won by resignation"]

1. d4 {[%clk 0:03:00.9]} 1... d5 {[%clk 0:02:59.1]} 2. c4 {[%clk 0:03:00.6]}
2... e6 {[%clk 0:02:59.5]} 3. Nc3 {[%clk 0:03:00.4]} 3... Nf6 {[%clk 0:02:59.9]}
4. cxd5 {[%clk 0:03:00.4]} 4... exd5 {[%clk 0:02:59.6]} 5. Bg5 {[%clk
0:03:00.2]} 5... Be7 {[%clk 0:02:59.7]} 6. e3 {[%clk 0:03:00.1]} 6... c6 {[%clk
0:03:00.1]} 7. Bd3 {[%clk 0:02:59.4]} 7... O-O {[%clk 0:03:00.4]} 8. Qc2 {[%clk
0:02:59.3]} 8... Nbd7 {[%clk 0:03:00.5]} 9. Nge2 {[%clk 0:02:58.7]} 9... Re8
{[%clk 0:03:00.7]} 10. O-O {[%clk 0:02:58.4]} 10... Nf8 {[%clk 0:03:00.7]} 11.
f3 {[%clk 0:02:28.7]} 11... Be6 {[%clk 0:03:00.8]} 12. Rad1 {[%clk 0:02:26.2]}
12... Rc8 {[%clk 0:03:01.3]} 13. Kh1 {[%clk 0:02:17.8]} 13... Nh5 {[%clk
0:02:58.9]} 14. Bxe7 {[%clk 0:02:16.7]} 14... Qxe7 {[%clk 0:02:59.8]} 15. e4
{[%clk 0:02:14.6]} 15... Qh4 {[%clk 0:02:42]} 16. e5 {[%clk 0:02:09.1]} 16...
Qg5 {[%clk 0:02:25.6]} 17. f4 {[%clk 0:02:04]} 17... Qh4 {[%clk 0:02:25.1]} 18.
f5 {[%clk 0:02:00.6]} 18... Bd7 {[%clk 0:02:24.9]} 19. Qd2 {[%clk 0:01:40.9]}
19... h6 {[%clk 0:02:10.4]} 20. f6 {[%clk 0:01:38.4]} 20... Qg5 {[%clk
0:02:02.4]} 21. Qxg5 {[%clk 0:01:26.4]} 21... hxg5 {[%clk 0:02:01.6]} 22. h3
{[%clk 0:01:10.5]} 22... gxf6 {[%clk 0:01:50.9]} 23. exf6 {[%clk 0:01:11.4]}
23... Re6 {[%clk 0:01:47.8]} 24. Rf5 {[%clk 0:01:04.6]} 24... Rxf6 {[%clk
0:01:45.6]} 25. Rxg5+ {[%clk 0:01:04]} 25... Ng7 {[%clk 0:01:45.6]} 26. Ng3
{[%clk 0:01:00]} 26... Ng6 {[%clk 0:01:43.4]} 27. Bxg6 {[%clk 0:00:40.8]} 27...
Rxg6 {[%clk 0:01:41.8]} 28. Rxg6 {[%clk 0:00:40.4]} 28... fxg6 {[%clk
0:01:42.7]} 29. Na4 {[%clk 0:00:40.1]} 29... b6 {[%clk 0:01:33.1]} 30. Re1
{[%clk 0:00:38.1]} 30... Re8 {[%clk 0:01:33]} 31. Rxe8+ {[%clk 0:00:29.7]} 31...
Bxe8 {[%clk 0:01:33.9]} 32. Ne2 {[%clk 0:00:25.3]} 32... Kf7 {[%clk 0:01:30.7]}
33. Nac3 {[%clk 0:00:21.3]} 33... Kf6 {[%clk 0:01:29.5]} 34. Kg1 {[%clk
0:00:21.1]} 34... Bd7 {[%clk 0:01:21.5]} 35. Kf2 {[%clk 0:00:21.4]} 35... Bf5
{[%clk 0:01:21.1]} 36. g4 {[%clk 0:00:20.5]} 36... Bd7 {[%clk 0:01:12.7]} 37.
Kg3 {[%clk 0:00:19.8]} 37... Ne6 {[%clk 0:01:11.6]} 38. h4 {[%clk 0:00:19.7]}
38... Bc8 {[%clk 0:01:04.1]} 39. b4 {[%clk 0:00:19.5]} 39... Bb7 {[%clk
0:00:59.5]} 40. a3 {[%clk 0:00:19]} 40... c5 {[%clk 0:00:59.5]} 41. bxc5 {[%clk
0:00:18.6]} 41... bxc5 {[%clk 0:01:00.4]} 42. dxc5 {[%clk 0:00:18.6]} 42... Nxc5
{[%clk 0:01:01.3]} 43. Nd4 {[%clk 0:00:18.6]} 43... Nd3 {[%clk 0:00:44.2]} 44.
Ndb5 {[%clk 0:00:15.6]} 44... a6 {[%clk 0:00:38.4]} 45. Nd6 {[%clk 0:00:15.5]}
45... Bc6 {[%clk 0:00:37.6]} 46. Ne2 {[%clk 0:00:12.1]} 46... Ne5 {[%clk
0:00:34.7]} 47. Nd4 {[%clk 0:00:11.8]} 47... Bd7 {[%clk 0:00:34.8]} 48. Nb7
{[%clk 0:00:11.4]} 48... Nc4 {[%clk 0:00:33.9]} 49. Nc5 {[%clk 0:00:11.2]} 49...
Be8 {[%clk 0:00:26.6]} 50. a4 {[%clk 0:00:11.5]} 50... Nb2 {[%clk 0:00:22.6]}
51. a5 {[%clk 0:00:10.7]} 51... Nc4 {[%clk 0:00:22.9]} 52. Nxa6 {[%clk
0:00:10.7]} 52... Nxa5 {[%clk 0:00:22.1]} 53. Nc7 {[%clk 0:00:11.6]} 53... Bd7
{[%clk 0:00:20.5]} 54. Nxd5+ {[%clk 0:00:11.5]} 54... Ke5 {[%clk 0:00:19.4]} 55.
Nf4 {[%clk 0:00:12.4]} 55... Kxd4 {[%clk 0:00:18.8]} 56. Nxg6 {[%clk 0:00:12.8]}
56... Kd5 {[%clk 0:00:18.5]} 57. h5 {[%clk 0:00:13]} 57... Kd6 {[%clk
0:00:19.4]} 58. h6 {[%clk 0:00:13.3]} 58... Be8 {[%clk 0:00:08.3]} 59. h7 {[%clk
0:00:13.5]} 59... Bxg6 {[%clk 0:00:07.7]} 60. h8=Q {[%clk 0:00:13.3]} 60... Be4
{[%clk 0:00:08.6]} 61. Qd4+ {[%clk 0:00:13]} 61... Bd5 {[%clk 0:00:08]} 62. Qb4+
{[%clk 0:00:12.9]} 1-0

[Event "*** SCC Grand Prix: Titled Tuesday Blitz"]
[Site "Chess.com"]
[Date "2020.06.09"]
[Round "7"]
[White "GuerrieroFromLevant"]
[Black "Mbneu"]
[Result "0-1"]
[WhiteElo "2332"]
[BlackElo "2232"]
[TimeControl "180+1"]
[EndTime "10:20:02 PDT"]
[Termination "Mbneu won by resignation"]

1. e4 {[%clk 0:03:00.9]} 1... c5 {[%clk 0:02:54.9]} 2. Nf3 {[%clk 0:03:01.2]}
2... Nf6 {[%clk 0:02:47.3]} 3. e5 {[%clk 0:03:00.2]} 3... Nd5 {[%clk 0:02:47.1]}
4. Nc3 {[%clk 0:03:00.8]} 4... Nxc3 {[%clk 0:02:47]} 5. dxc3 {[%clk 0:03:01.7]}
5... Nc6 {[%clk 0:02:46.8]} 6. Bf4 {[%clk 0:03:00.4]} 6... e6 {[%clk 0:02:47]}
7. Nd2 {[%clk 0:03:00.8]} 7... d5 {[%clk 0:02:42.5]} 8. exd6 {[%clk 0:02:57.2]}
8... Bxd6 {[%clk 0:02:41.9]} 9. Bxd6 {[%clk 0:02:58.1]} 9... Qxd6 {[%clk
0:02:41.5]} 10. Qf3 {[%clk 0:02:58.5]} 10... Qd5 {[%clk 0:02:38.1]} 11. Qg3
{[%clk 0:02:47.7]} 11... O-O {[%clk 0:02:35.1]} 12. Bd3 {[%clk 0:02:42]} 12...
Qe5+ {[%clk 0:02:34.8]} 13. Qxe5 {[%clk 0:02:36.2]} 13... Nxe5 {[%clk
0:02:34.4]} 14. Ne4 {[%clk 0:02:37.1]} 14... b6 {[%clk 0:02:29.3]} 15. f4 {[%clk
0:02:32.6]} 15... Ng6 {[%clk 0:02:26.7]} 16. g3 {[%clk 0:02:32.1]} 16... Bb7
{[%clk 0:02:26.7]} 17. O-O-O {[%clk 0:02:24.3]} 17... c4 {[%clk 0:02:21.3]} 18.
Nd6 {[%clk 0:02:23.9]} 18... Bxh1 {[%clk 0:02:19.8]} 19. Bxg6 {[%clk 0:02:24.3]}
19... Bd5 {[%clk 0:02:09.4]} 20. Be4 {[%clk 0:02:21.1]} 20... Rad8 {[%clk
0:02:00.2]} 21. Bxd5 {[%clk 0:02:15.2]} 21... Rxd6 {[%clk 0:01:59]} 22. Bxc4
{[%clk 0:02:14.5]} 22... Rxd1+ {[%clk 0:01:58.6]} 23. Kxd1 {[%clk 0:02:15.4]}
23... Rd8+ {[%clk 0:01:37.5]} 24. Ke2 {[%clk 0:02:14.2]} 24... Kf8 {[%clk
0:01:37.1]} 25. Bd3 {[%clk 0:02:11.7]} 25... h6 {[%clk 0:01:34.6]} 26. Ke3
{[%clk 0:02:12]} 26... Ke7 {[%clk 0:01:33.7]} 27. Be2 {[%clk 0:02:09.1]} 27...
g5 {[%clk 0:01:33.4]} 28. Bd3 {[%clk 0:02:05.7]} 28... f5 {[%clk 0:01:32.5]} 29.
Be2 {[%clk 0:02:01.8]} 29... Kf6 {[%clk 0:01:32.6]} 30. c4 {[%clk 0:01:59.3]}
30... e5 {[%clk 0:01:31.7]} 31. b4 {[%clk 0:01:58]} 31... Rd4 {[%clk 0:01:28.3]}
32. fxe5+ {[%clk 0:01:45.1]} 32... Kxe5 {[%clk 0:01:27.4]} 33. Bd3 {[%clk
0:01:44.3]} 33... f4+ {[%clk 0:01:24.7]} 34. Kf3 {[%clk 0:01:44.5]} 34... fxg3
{[%clk 0:01:21.3]} 35. hxg3 {[%clk 0:01:45.4]} 35... Rd7 {[%clk 0:01:16.5]} 36.
a4 {[%clk 0:01:36.6]} 36... Kd4 {[%clk 0:01:13]} 37. Kg4 {[%clk 0:01:32.5]}
37... Re7 {[%clk 0:01:11.8]} 38. Kh5 {[%clk 0:01:27.4]} 38... Re3 {[%clk
0:01:11.3]} 39. g4 {[%clk 0:01:24.8]} 39... Rh3+ {[%clk 0:01:10.8]} 40. Kg6
{[%clk 0:01:25.2]} 40... a5 {[%clk 0:01:03.6]} 41. c5 {[%clk 0:01:18.8]} 41...
bxc5 {[%clk 0:00:56.8]} 42. bxa5 {[%clk 0:01:09.3]} 42... c4 {[%clk 0:00:56.9]}
43. Bf5 {[%clk 0:00:50]} 43... Ra3 {[%clk 0:00:35.6]} 44. Bd7 {[%clk 0:00:49.1]}
44... Kc5 {[%clk 0:00:32.2]} 45. Bb5 {[%clk 0:00:34.4]} 45... Rc3 {[%clk
0:00:26]} 46. Kxh6 {[%clk 0:00:27.5]} 46... Rxc2 {[%clk 0:00:26]} 47. Kxg5
{[%clk 0:00:27.9]} 47... Rb2 {[%clk 0:00:25.1]} 48. Kf4 {[%clk 0:00:26.7]} 48...
c3 {[%clk 0:00:18.6]} 49. Ke3 {[%clk 0:00:26.6]} 49... Rg2 {[%clk 0:00:18.5]}
50. a6 {[%clk 0:00:18.3]} 50... c2 {[%clk 0:00:18]} 51. a7 {[%clk 0:00:17.3]}
51... c1=Q+ {[%clk 0:00:17.4]} 52. Kf3 {[%clk 0:00:17.4]} 52... Qc3+ {[%clk
0:00:11.1]} 53. Kxg2 {[%clk 0:00:17.3]} 53... Qa5 {[%clk 0:00:11.7]} 54. Kg3
{[%clk 0:00:16.3]} 54... Qxa7 {[%clk 0:00:12]} 55. g5 {[%clk 0:00:16.9]} 55...
Qg7 {[%clk 0:00:12.1]} 56. Kg4 {[%clk 0:00:17.3]} 56... Kd5 {[%clk 0:00:12]} 57.
Kf5 {[%clk 0:00:17.7]} 57... Kd6 {[%clk 0:00:10.4]} 58. g6 {[%clk 0:00:17.8]}
58... Ke7 {[%clk 0:00:10]} 59. Bc4 {[%clk 0:00:17.5]} 59... Qf6+ {[%clk
0:00:09.9]} 60. Ke4 {[%clk 0:00:17]} 60... Qxg6+ {[%clk 0:00:10.8]} 61. Kd5
{[%clk 0:00:16.8]} 61... Qd6+ {[%clk 0:00:10]} 62. Ke4 {[%clk 0:00:16.9]} 62...
Qb4 {[%clk 0:00:10.9]} 63. Kd5 {[%clk 0:00:16.5]} 63... Qxa4 {[%clk 0:00:10.6]}
64. Kc5 {[%clk 0:00:17.2]} 64... Qa5+ {[%clk 0:00:11.5]} 65. Bb5 {[%clk
0:00:17.3]} 65... Kd8 {[%clk 0:00:11.8]} 66. Kc6 {[%clk 0:00:17.5]} 66... Qa7
{[%clk 0:00:11]} 67. Bc4 {[%clk 0:00:17]} 67... Kc8 {[%clk 0:00:10.5]} 68. Be6+
{[%clk 0:00:16.9]} 68... Kb8 {[%clk 0:00:11.4]} 69. Bd5 {[%clk 0:00:17.4]} 69...
Qc7+ {[%clk 0:00:12.3]} 70. Kb5 {[%clk 0:00:17.9]} 70... Ka7 {[%clk 0:00:13.2]}
71. Bc6 {[%clk 0:00:17.9]} 71... Qb6+ {[%clk 0:00:14.1]} 0-1

[Event "*** SCC Grand Prix: Titled Tuesday Blitz"]
[Site "Chess.com"]
[Date "2020.06.09"]
[Round "7"]
[White "Meri-Arabidze"]
[Black "Sychev_Klementy"]
[Result "0-1"]
[WhiteElo "2646"]
[BlackElo "2851"]
[TimeControl "180+1"]
[EndTime "10:20:03 PDT"]
[Termination "Sychev_Klementy won on time"]

1. d4 {[%clk 0:03:00.9]} 1... Nf6 {[%clk 0:02:59.6]} 2. c4 {[%clk 0:03:01.5]}
2... g6 {[%clk 0:02:59.1]} 3. Nf3 {[%clk 0:03:02.4]} 3... Bg7 {[%clk 0:02:58.9]}
4. g3 {[%clk 0:03:03.1]} 4... O-O {[%clk 0:02:57.5]} 5. Bg2 {[%clk 0:03:03.8]}
5... d6 {[%clk 0:02:58.1]} 6. O-O {[%clk 0:03:03.9]} 6... Nc6 {[%clk 0:02:58.7]}
7. Nc3 {[%clk 0:03:04.5]} 7... a5 {[%clk 0:02:59.2]} 8. d5 {[%clk 0:03:00.8]}
8... Nb8 {[%clk 0:02:52.9]} 9. e4 {[%clk 0:02:58.8]} 9... e5 {[%clk 0:02:45.4]}
10. Ne1 {[%clk 0:02:48.7]} 10... Na6 {[%clk 0:02:40.7]} 11. Nd3 {[%clk
0:02:49.3]} 11... b6 {[%clk 0:02:38.4]} 12. a3 {[%clk 0:02:35.6]} 12... Nc5
{[%clk 0:02:34]} 13. Rb1 {[%clk 0:02:26.4]} 13... Bg4 {[%clk 0:02:28.7]} 14. f3
{[%clk 0:02:25.6]} 14... Bd7 {[%clk 0:02:27.7]} 15. b4 {[%clk 0:02:25.3]} 15...
axb4 {[%clk 0:02:24.2]} 16. axb4 {[%clk 0:02:26.2]} 16... Na4 {[%clk 0:02:01.8]}
17. Bd2 {[%clk 0:02:21.3]} 17... Nh5 {[%clk 0:01:58.6]} 18. Nb5 {[%clk
0:02:14.9]} 18... Bxb5 {[%clk 0:01:45.5]} 19. cxb5 {[%clk 0:02:15.8]} 19... Qd7
{[%clk 0:01:46]} 20. Rf2 {[%clk 0:01:46.1]} 20... Qxb5 {[%clk 0:01:42.3]} 21.
Bf1 {[%clk 0:01:46.7]} 21... Qd7 {[%clk 0:01:40.1]} 22. Qc2 {[%clk 0:01:35.5]}
22... b5 {[%clk 0:01:29]} 23. Rc1 {[%clk 0:01:35.3]} 23... Rfc8 {[%clk
0:01:27.9]} 24. Be3 {[%clk 0:01:32]} 24... Nb6 {[%clk 0:01:18.6]} 25. Nb2 {[%clk
0:01:20.5]} 25... Nf6 {[%clk 0:00:47.1]} 26. Qc6 {[%clk 0:01:18]} 26... Qxc6
{[%clk 0:00:41.4]} 27. Rxc6 {[%clk 0:01:18.9]} 27... Nbxd5 {[%clk 0:00:30]} 28.
exd5 {[%clk 0:01:16.9]} 28... Nxd5 {[%clk 0:00:30.9]} 29. Bd2 {[%clk 0:01:10.8]}
29... Ne7 {[%clk 0:00:31]} 30. Rc1 {[%clk 0:01:08.3]} 30... c6 {[%clk
0:00:30.4]} 31. Nd3 {[%clk 0:01:03.2]} 31... f5 {[%clk 0:00:27.2]} 32. Be1
{[%clk 0:00:53.9]} 32... Bh6 {[%clk 0:00:22.9]} 33. Bd2 {[%clk 0:00:49.4]} 33...
Bf8 {[%clk 0:00:21]} 34. Re2 {[%clk 0:00:42]} 34... Ra2 {[%clk 0:00:19.1]} 35.
Be1 {[%clk 0:00:37.1]} 35... Rxe2 {[%clk 0:00:15.9]} 36. Bxe2 {[%clk 0:00:38]}
36... Ra8 {[%clk 0:00:16.5]} 37. g4 {[%clk 0:00:30.2]} 37... Kf7 {[%clk
0:00:16.3]} 38. Bh4 {[%clk 0:00:24.7]} 38... Bh6 {[%clk 0:00:14.8]} 39. Rc2
{[%clk 0:00:20.2]} 39... Be3+ {[%clk 0:00:14.7]} 40. Kg2 {[%clk 0:00:20]} 40...
g5 {[%clk 0:00:15]} 41. Bf2 {[%clk 0:00:19.9]} 41... Bxf2 {[%clk 0:00:14.6]} 42.
Kxf2 {[%clk 0:00:20.8]} 42... f4 {[%clk 0:00:15]} 43. Nc1 {[%clk 0:00:18]} 43...
Ra4 {[%clk 0:00:13.9]} 44. Bd3 {[%clk 0:00:16.8]} 44... h6 {[%clk 0:00:12.8]}
45. Rb2 {[%clk 0:00:05.9]} 45... Nd5 {[%clk 0:00:12.8]} 46. Be4 {[%clk
0:00:05.5]} 46... Nxb4 {[%clk 0:00:10.7]} 47. Nb3 {[%clk 0:00:05.3]} 47... d5
{[%clk 0:00:10.4]} 48. Nc5 {[%clk 0:00:05.5]} 48... dxe4 {[%clk 0:00:07.1]} 49.
Nxa4 {[%clk 0:00:05.7]} 49... Nd3+ {[%clk 0:00:07.2]} 50. Ke2 {[%clk 0:00:06.4]}
50... Nxb2 {[%clk 0:00:06.7]} 51. Nxb2 {[%clk 0:00:07.3]} 51... e3 {[%clk
0:00:05.3]} 52. Kd3 {[%clk 0:00:07.3]} 52... Ke6 {[%clk 0:00:05.5]} 53. Ke4
{[%clk 0:00:06.6]} 53... c5 {[%clk 0:00:05.9]} 54. Nd3 {[%clk 0:00:05.9]} 54...
c4 {[%clk 0:00:06.3]} 55. Nb4 {[%clk 0:00:02.1]} 55... e2 {[%clk 0:00:06.6]} 56.
Nc2 {[%clk 0:00:02.3]} 56... b4 {[%clk 0:00:07.2]} 57. h4 {[%clk 0:00:02.2]}
57... b3 {[%clk 0:00:07.1]} 0-1